fUST/lending_fUST_20250816
["ID","MTS","AMOUNT","RATE_DAILY","PERIOD"]
[379621541,1755347458101,-480.0,0.00022739,3]
[379621542,1755347458110,-565.64220362,0.00022739,3]
[379621543,1755347458119,-480.0,0.00022739,3]
[379621544,1755347458129,-614.33121428,0.00022739,3]
[379621545,1755347458138,-480.0,0.00022739,3]
[379621546,1755347458147,-151.0,0.00022739,7]
[379621547,1755347458156,-549.14012497,0.00022739,3]
[379621548,1755347458166,-480.0,0.00022739,3]
[379621549,1755347458175,-151.0,0.00022739,7]
[379621550,1755347458185,-480.0,0.00022739,3]
[379621551,1755347458194,-480.0,0.00022739,3]
[379621552,1755347458203,-480.0,0.00022739,3]
[379621553,1755347458212,-480.0,0.00022739,3]
[379621554,1755347458221,-7168.88,0.00022739,3]
[379621555,1755347458230,-1317.3,0.00022739,3]
[379621556,1755347458239,-1130.500046,0.00022739,7]
[379621557,1755347458249,-480.0,0.00022739,3]
[379621558,1755347458258,-480.0,0.00022739,3]
[379621559,1755347458267,-151.0,0.00022739,7]
[379621560,1755347458276,-721.201975,0.00022739,7]
[379621561,1755347458285,-480.0,0.00022739,3]
[379621562,1755347458295,-721.201975,0.00022739,7]
[379621563,1755347458304,-750.95,0.00022739,3]
[379621564,1755347458313,-480.0,0.00022739,3]
[379621565,1755347458322,-480.0,0.00022739,3]
[379621566,1755347458332,-314.3600084,0.00022739,3]
[379621567,1755347458341,-480.0,0.00022739,3]
[379621568,1755347458351,-480.0,0.00022739,3]
[379621569,1755347458360,-480.0,0.00022739,3]
[379621570,1755347458370,-302.94688,0.00022739,7]
[379621571,1755347458379,-480.0,0.00022739,3]
[379621572,1755347458389,-364.676974,0.00022739,7]
[379621573,1755347458399,-2880.83,0.00022739,3]
[379621574,1755347458409,-480.0,0.00022739,3]
[379621575,1755347458426,-302.94688,0.00022739,7]
[379621576,1755347458435,-364.676974,0.00022739,7]
[379621577,1755347458444,-1620.5,0.00022739,3]
[379621578,1755347458454,-480.0,0.00022739,3]
[379621579,1755347458463,-2655.77,0.00022739,3]
[379621580,1755347458472,-480.0,0.00022739,3]
[379621581,1755347458481,-480.0,0.00022739,3]
[379621582,1755347458492,-480.0,0.00022739,3]
[379621583,1755347458504,-480.0,0.00022739,3]
[379621584,1755347458515,-1252.72,0.00022739,3]
[379621585,1755347458525,-480.0,0.00022739,3]
[379621586,1755347458534,-480.0,0.00022739,3]
[379621587,1755347458543,-480.0,0.00022739,3]
[379621588,1755347458553,-400.0,0.00022739,3]
[379621589,1755347458563,-480.0,0.00022739,3]
[379621590,1755347458572,-400.0,0.00022739,3]
[379621591,1755347458582,-480.0,0.00022739,3]
[379621592,1755347458591,-480.0,0.00022739,3]
[379621593,1755347458600,-480.0,0.00022739,3]
[379621594,1755347458610,-480.0,0.00022739,3]
[379621595,1755347458619,-480.0,0.00022739,3]
[379621596,1755347458629,-548.08,0.00022739,3]
[379621597,1755347458638,-480.0,0.00022739,3]
[379621598,1755347458647,-151.0,0.00022739,7]
[379621599,1755347458657,-472.73989057,0.00022739,3]
[379621600,1755347458667,-480.0,0.00022739,3]
[379621601,1755347458676,-480.0,0.00022739,3]
[379621602,1755347458686,-1164.66,0.00022739,3]
[379621603,1755347458695,-480.0,0.00022739,3]
[379621604,1755347458705,-480.0,0.00022739,3]
[379621605,1755347458714,-480.0,0.00022739,3]
[379621606,1755347458723,-480.0,0.00022739,3]
[379621607,1755347458733,-480.0,0.00022739,3]
[379621608,1755347458742,-480.0,0.00022739,3]
[379621609,1755347458751,-480.0,0.00022739,3]
[379621610,1755347458761,-480.0,0.00022739,3]
[379621611,1755347458770,-5019.98,0.00022739,3]
[379621612,1755347458780,-480.0,0.00022739,3]
[379621613,1755347458789,-400.0,0.00022739,3]
[379621614,1755347458798,-480.0,0.00022739,3]
[379621615,1755347458807,-480.0,0.00022739,3]
[379621616,1755347458816,-480.0,0.00022739,3]
[379621617,1755347458826,-480.0,0.00022739,3]
[379621618,1755347458836,-480.0,0.00022739,3]
[379621619,1755347458845,-534.66,0.00022739,3]
[379621620,1755347458854,-480.0,0.00022739,3]
[379621621,1755347458864,-665.97,0.00022739,3]
[379621622,1755347458874,-202.234014,0.00022739,7]
[379621623,1755347458883,-837.5,0.00022739,3]
[379621624,1755347458892,-151.0,0.00022739,7]
[379621625,1755347458901,-202.234014,0.00022739,7]
[379621626,1755347458911,-480.0,0.00022739,3]
[379621627,1755347458922,-480.0,0.00022739,3]
[379621628,1755347458932,-1309.42,0.00022739,3]
[379621629,1755347458941,-1181.65,0.00022739,3]
[379621630,1755347458950,-151.0,0.00022739,7]
[379621631,1755347458959,-500.0,0.00022739,3]
[379621632,1755347458968,-567.4,0.00022739,3]
[379621633,1755347458982,-921.78,0.00022739,3]
[379621634,1755347458991,-151.0,0.00022739,7]
[379621635,1755347459000,-551.9,0.00022739,3]
[379621636,1755347459009,-151.0,0.00022739,7]
[379621637,1755347459019,-480.0,0.00022739,3]
[379621638,1755347459028,-1027.33,0.00022739,3]
[379621639,1755347459037,-480.0,0.00022739,3]
[379621640,1755347459047,-1605.97,0.00022739,3]
[379621641,1755347459056,-480.0,0.00022739,3]
[379621642,1755347459065,-480.0,0.00022739,3]
[379621643,1755347459074,-480.0,0.00022739,3]
[379621644,1755347459083,-847.83,0.00022739,3]
[379621645,1755347459093,-480.0,0.00022739,3]
[379621646,1755347459102,-480.0,0.00022739,3]
[379621647,1755347459112,-480.0,0.00022739,3]
[379621648,1755347459121,-480.0,0.00022739,3]
[379621649,1755347459130,-1315.29,0.00022739,3]
[379621650,1755347459140,-1929.72,0.00022739,3]
[379621651,1755347459149,-723.73,0.00022739,3]
[379621652,1755347459158,-909.19,0.00022739,3]
[379621653,1755347459170,-2212.27,0.00022739,3]
[379621654,1755347459179,-480.0,0.00022739,3]
[379621655,1755347459188,-480.0,0.00022739,3]
[379621656,1755347459198,-480.0,0.00022739,3]
[379621657,1755347459208,-909.82,0.00022739,3]
[379621658,1755347459217,-480.0,0.00022739,3]
[379621659,1755347459227,-480.0,0.00022739,3]
[379621660,1755347459236,-480.0,0.00022739,3]
[379621661,1755347459246,-507.77,0.00022739,3]
[379621662,1755347459255,-480.0,0.00022739,3]
[379621663,1755347459265,-480.0,0.00022739,3]
[379621664,1755347459274,-480.0,0.00022739,3]
[379621665,1755347459283,-480.0,0.00022739,3]
[379621666,1755347459292,-480.0,0.00022739,3]
[379621667,1755347459302,-480.0,0.00022739,3]
[379621668,1755347459312,-480.0,0.00022739,3]
[379621669,1755347459321,-480.0,0.00022739,3]
[379621670,1755347459331,-791.81,0.00022739,3]
[379621671,1755347459340,-480.0,0.00022739,3]
[379621672,1755347459353,-480.0,0.00022739,3]
[379621673,1755347459362,-1862.15,0.00022739,3]
[379621674,1755347459373,-480.0,0.00022739,3]
[379621675,1755347459383,-1856.9,0.00022739,3]
[379621676,1755347459394,-962.31,0.00022739,3]
[379621677,1755347459403,-1181.72,0.00022739,3]
[379621678,1755347459412,-480.0,0.00022739,3]
[379621679,1755347459428,-151.0,0.00022739,7]
[379621680,1755347459438,-480.0,0.00022739,2]
[379621681,1755347459447,-480.0,0.00022739,3]
[379621682,1755347459457,-480.0,0.00022739,3]
[379621683,1755347459467,-1134.41,0.00022739,3]
[379621684,1755347459477,-151.0,0.00022739,7]
[379621685,1755347459487,-480.0,0.00022739,3]
[379621686,1755347459600,-480.0,0.00022739,3]
[379621687,1755347459610,-480.0,0.00022739,3]
[379621688,1755347459620,-480.0,0.00022739,3]
[379621689,1755347459629,-480.0,0.00022739,3]
[379621690,1755347459639,-480.0,0.00022739,3]
[379621691,1755347459648,-480.0,0.00022739,3]
[379621692,1755347459657,-480.0,0.00022739,3]
[379621693,1755347459668,-480.0,0.00022739,3]
[379621694,1755347459677,-586.52,0.00022739,3]
[379621695,1755347459686,-556.57,0.00022739,3]
[379621696,1755347459695,-480.0,0.00022739,3]
[379621697,1755347459705,-480.0,0.00022739,3]
[379621698,1755347459714,-480.0,0.00022739,3]
[379621699,1755347459723,-584.11,0.00022739,3]
[379621700,1755347459733,-480.0,0.00022739,3]
[379621701,1755347459742,-480.0,0.00022739,3]
[379621702,1755347459752,-480.0,0.00022739,3]
[379621703,1755347459761,-480.0,0.00022739,3]
[379621704,1755347459771,-2462.76,0.00022739,3]
[379621705,1755347459780,-480.0,0.00022739,3]
[379621706,1755347459790,-480.0,0.00022739,3]
[379621707,1755347459799,-946.87,0.00022739,3]
[379621708,1755347459808,-480.0,0.00022739,3]
[379621709,1755347459818,-8871.61,0.00022739,3]
[379621710,1755347459828,-449.32803731,0.00022739,3]
[379621711,1755347459838,-480.0,0.00022739,3]
[379621712,1755347459846,-480.0,0.00022739,3]
[379621713,1755347459856,-4573.19,0.00022739,3]
[379621714,1755347459866,-480.0,0.00022739,3]
[379621715,1755347459875,-480.0,0.00022739,3]
[379621716,1755347459885,-480.0,0.00022739,3]
[379621717,1755347459895,-480.0,0.00022739,3]
[379621718,1755347459904,-480.0,0.00022739,3]
[379621719,1755347459914,-151.0,0.00022739,7]
[379621720,1755347459924,-151.0,0.00022739,7]
[379621721,1755347459934,-151.0,0.00022739,7]
[379621722,1755347459944,-151.0,0.00022739,7]
[379621723,1755347459954,-1037.56,0.00022739,3]
[379621724,1755347459963,-151.0,0.00022739,7]
[379621725,1755347459973,-480.0,0.00022739,3]
[379621726,1755347459982,-1446.85,0.00022739,3]
[379621727,1755347459992,-829.27,0.00022739,3]
[379621728,1755347460003,-750.42,0.00022739,3]
[379621729,1755347460013,-480.0,0.00022739,3]
[379621730,1755347460023,-581.5,0.00022739,3]
[379621731,1755347460033,-13209.52,0.00022739,3]
[379621732,1755347460043,-545.37,0.00022739,3]
[379621733,1755347460053,-480.0,0.00022739,3]
[379621734,1755347460063,-2408.41,0.00022739,3]
[379621735,1755347460074,-480.0,0.00022739,3]
[379621736,1755347460084,-480.0,0.00022739,3]
[379621737,1755347460094,-1310.83,0.00022739,3]
[379621738,1755347460104,-480.0,0.00022739,3]
[379621739,1755347460114,-480.0,0.00022739,3]
[379621740,1755347460124,-480.0,0.00022739,3]
[379621741,1755347460134,-480.0,0.00022739,3]
[379621742,1755347460144,-1333.16,0.00022739,3]
[379621743,1755347460153,-480.0,0.00022739,3]
[379621744,1755347460163,-837.44,0.00022739,3]
[379621745,1755347460175,-3101.46,0.00022739,3]
[379621746,1755347460185,-1955.675544,0.00022739,7]
[379621747,1755347460195,-952.52,0.00022739,3]
[379621748,1755347460204,-9375.88,0.00022739,3]
[379621749,1755347460214,-480.0,0.00022739,3]
[379621750,1755347460224,-1955.675544,0.00022739,7]
[379621751,1755347460233,-480.0,0.00022739,3]
[379621752,1755347460243,-480.0,0.00022739,3]
[379621753,1755347460251,-480.0,0.00022739,3]
[379621754,1755347460260,-480.0,0.00022739,3]
[379621755,1755347460269,-788.4,0.00022739,3]
[379621756,1755347460278,-755.55,0.00022739,3]
[379621757,1755347460287,-480.0,0.00022739,3]
[379621758,1755347460296,-819.77,0.00022739,3]
[379621759,1755347460305,-3747.26,0.00022739,3]
[379621760,1755347460315,-480.0,0.00022739,3]
[379621761,1755347460323,-480.0,0.00022739,3]
[379621762,1755347460333,-480.0,0.00022739,3]
[379621763,1755347460342,-480.0,0.00022739,3]
[379621764,1755347460351,-428.59664879,0.00022739,3]
[379621765,1755347460361,-480.0,0.00022739,3]
[379621766,1755347460370,-641.377813,0.00022739,7]
[379621767,1755347460380,-480.0,0.00022739,3]
[379621768,1755347460390,-641.377813,0.00022739,7]
[379621769,1755347460399,-480.0,0.00022739,3]
[379621770,1755347460409,-1233.14,0.00022739,3]
[379621771,1755347460420,-480.0,0.00022739,3]
[379621772,1755347460429,-641.377813,0.00022739,7]
[379621773,1755347460439,-150.09449236,0.00022739,3]
[379621774,1755347460449,-480.0,0.00022739,3]
[379621775,1755347460458,-641.377813,0.00022739,7]
[379621776,1755347460467,-480.0,0.00022739,3]
[379621777,1755347460476,-670.31,0.00022739,3]
[379621778,1755347460486,-480.0,0.00022739,3]
[379621779,1755347460495,-480.0,0.00022739,3]
[379621780,1755347460505,-3550.73621778,0.00022743,2]
[379621781,1755347460515,-260.0,0.00022748,2]
[379621782,1755347460524,-168.0,0.00022755,2]
[379621783,1755347460534,-150.7008718,0.00022773,2]
[379621784,1755347460543,-150.0,0.00022773,2]
[379621785,1755347460552,-1000.0,0.00022773,2]
[379621786,1755347460562,-500.0,0.00022773,2]
[379621787,1755347460572,-339.0,0.00022794,2]
[379621788,1755347460581,-153.0,0.00022795,2]
[379621789,1755347460590,-153.0,0.00022795,2]
[379621790,1755347460599,-306.0,0.00022795,2]
[379621791,1755347460609,-306.0,0.00022795,2]
[379621792,1755347460618,-1033.84,0.00022795,2]
[379621793,1755347460627,-206.76,0.000228,7]
[379621794,1755347460637,-31450.18,0.000228,7]
[379621795,1755347460646,-151.0,0.000228,7]
[379621796,1755347460655,-151.0,0.000228,7]
[379621797,1755347460664,-151.0,0.000228,7]
[379621798,1755347460678,-151.0,0.000228,7]
[379621799,1755347460687,-151.0,0.000228,6]
[379621800,1755347460696,-193.315934,0.000228,7]
[379621801,1755347460704,-244.557255,0.000228,7]
[379621802,1755347460713,-193.315934,0.000228,7]
[379621803,1755347460723,-244.557255,0.000228,7]
[379621804,1755347460732,-151.0,0.000228,7]
[379621805,1755347460741,-151.0,0.000228,7]
[379621806,1755347460751,-153.44021,0.000228,7]
[379621807,1755347460759,-436.003215,0.000228,7]
[379621808,1755347460768,-436.003215,0.000228,7]
[379621809,1755347460776,-302.94688,0.000228,7]
[379621810,1755347460785,-302.94688,0.000228,7]
[379621811,1755347460794,-462.1417622,0.000228,7]
[379621812,1755347460803,-151.0,0.0002281,2]
[379621813,1755347460812,-151.0,0.00022813,7]
[379621814,1755347460821,-1955.675544,0.00022813,7]
[379621815,1755347460830,-1955.675544,0.00022813,7]
[379621816,1755347460839,-168.0,0.00022818,2]
[379621817,1755347460848,-153.32251725,0.00022822,2]
[379621818,1755347460856,-153.32251727,0.00022822,2]
[379621819,1755347460865,-229.499252,0.00022836,7]
[379621820,1755347460874,-229.499252,0.00022836,7]
[379621821,1755347460883,-168.0,0.00022849,2]
[379621822,1755347460892,-168.0,0.00022898,2]
[379621823,1755347460901,-151.0,0.000229,7]
[379621824,1755347460910,-511.410321,0.000229,2]
[379621825,1755347460923,-500.0,0.00022903,8]
[379621826,1755347460932,-168.0,0.00022908,2]
[379621827,1755347460941,-151.0,0.00022913,7]
[379621828,1755347460950,-202.234014,0.00022913,7]
[379621829,1755347460959,-202.234014,0.00022913,7]
[379621830,1755347460968,-151.0,0.00022913,7]
[379621831,1755347460977,-179.034609,0.00022913,7]
[379621832,1755347460986,-151.0,0.00022913,7]
[379621833,1755347460995,-151.0,0.00022913,7]
[379621834,1755347461005,-151.0,0.00022913,7]
[379621835,1755347461014,-500.0,0.0002292,8]
[379621836,1755347461023,-314.0,0.00022927,2]
[379621837,1755347461033,-153.32251725,0.00022959,2]
[379621838,1755347461042,-168.0,0.00022971,2]
[379621839,1755347461052,-168.0,0.00022977,2]
[379621840,1755347461061,-1901.40545407,0.0002298,2]
[379621841,1755347461070,-186.515373,0.0002298,7]
[379621842,1755347461079,-186.515373,0.0002298,7]
[379621843,1755347461088,-781.24999,0.0002298,7]
[379621844,1755347461098,-781.24999,0.0002298,7]
[379621845,1755347461107,-151.0,0.00022995,2]
[379621846,1755347461116,-500.0,0.00022995,2]
[379621847,1755347461125,-234.32704788,0.00022995,2]
[379621848,1755347461135,-1000.0,0.00022999,7]
[379621849,1755347461144,-151.0,0.00023,7]
[379621850,1755347461153,-229.499252,0.00023,7]
[379621851,1755347461163,-229.499252,0.00023,7]
[379621852,1755347461177,-3000.0,0.00023,2]
[379621853,1755347461187,-544.063253,0.00023,7]
[379621854,1755347461196,-151.0,0.00023,7]
[379621855,1755347461205,-843.16119959,0.00023,3]
[379621856,1755347461215,-1495.369809,0.00023,7]
[379621857,1755347461224,-1495.369809,0.00023,7]
[379621858,1755347461234,-153.0,0.00023,2]
[379621859,1755347461243,-979.07992,0.00023,7]
[379621860,1755347461252,-979.07992,0.00023,7]
[379621861,1755347461262,-196.097691,0.00023,7]
[379621862,1755347461271,-196.097691,0.00023,7]
[379621863,1755347461280,-151.0,0.00023,7]
[379621864,1755347461289,-151.0,0.00023,8]
[379621865,1755347461299,-151.0,0.00023,7]
[379621866,1755347461308,-252.271257,0.00023,7]
[379621867,1755347461319,-252.271257,0.00023,7]
[379621868,1755347461328,-711.310037,0.00023,7]
[379621869,1755347461337,-711.310037,0.00023,7]
[379621870,1755347461346,-154.464507,0.00023,7]
[379621871,1755347461356,-154.464507,0.00023,7]
[379621872,1755347461365,-151.0,0.00023,7]
[379621873,1755347461375,-160.0,0.00023,2]
[379621874,1755347461384,-150.0,0.00023,10]
[379621875,1755347461394,-160.0,0.00023,3]
[379621876,1755347461404,-216.80276362,0.00023,3]
[379621877,1755347461414,-528.38334358,0.00023,3]
[379621878,1755347461428,-193.0,0.00023,7]
[379621879,1755347461438,-3000.0,0.0002301,2]
[379621880,1755347461447,-151.0,0.00023013,7]
[379621881,1755347461456,-151.0,0.00023013,7]
[379621882,1755347461466,-229.499252,0.00023013,7]
[379621883,1755347461476,-229.499252,0.00023013,7]
[379621884,1755347461583,-151.0,0.00023013,7]
[379621885,1755347461594,-167.8,0.00023013,7]
[379621886,1755347461603,-167.8,0.00023013,7]
[379621887,1755347461613,-151.0,0.00023013,7]
[379621888,1755347461623,-181.920559,0.00023013,7]
[379621889,1755347461632,-151.0,0.00023013,7]
[379621890,1755347461642,-157.067641,0.00023013,7]
[379621891,1755347461651,-157.067641,0.00023013,7]
[379621892,1755347461662,-162.84842,0.00023013,7]
[379621893,1755347461676,-162.84842,0.00023013,7]
[379621894,1755347461686,-170.869541,0.00023013,7]
[379621895,1755347461697,-151.0,0.00023013,7]
[379621896,1755347461706,-151.0,0.00023013,7]
[379621897,1755347461716,-151.0,0.00023013,7]
[379621898,1755347461726,-151.0,0.00023013,7]
[379621899,1755347461735,-201.431675,0.00023013,7]
[379621900,1755347461746,-201.431675,0.00023013,7]
[379621901,1755347461756,-359.805218,0.00023013,7]
[379621902,1755347461766,-359.805218,0.00023013,7]
[379621903,1755347461776,-268.388311,0.00023013,7]
[379621904,1755347461786,-268.388311,0.00023013,7]
[379621905,1755347461796,-979.07992,0.00023013,7]
[379621906,1755347461805,-979.07992,0.00023013,7]
[379621907,1755347461815,-151.0,0.00023013,7]
[379621908,1755347461824,-151.0,0.00023013,7]
[379621909,1755347461834,-151.0,0.00023013,7]
[379621910,1755347461843,-151.0,0.00023013,7]
[379621911,1755347461852,-151.0,0.00023013,7]
[379621912,1755347461862,-151.0,0.00023013,7]
[379621913,1755347461872,-151.0,0.00023013,7]
[379621914,1755347461881,-151.0,0.00023013,7]
[379621915,1755347461891,-152.56262,0.00023013,7]
[379621916,1755347461900,-193.315934,0.00023013,7]
[379621917,1755347461909,-244.557255,0.00023013,7]
[379621918,1755347461922,-193.315934,0.00023013,7]
[379621919,1755347461931,-244.557255,0.00023013,7]
[379621920,1755347461940,-151.0,0.00023013,7]
[379621921,1755347461950,-480.0,0.00023013,3]
[379621922,1755347461959,-480.0,0.00023013,3]
[379621923,1755347461969,-480.0,0.00023013,3]
[379621924,1755347461979,-652.646724,0.00023013,7]
[379621925,1755347461988,-480.0,0.00023013,3]
[379621926,1755347461997,-480.0,0.00023013,3]
[379621927,1755347462007,-652.646724,0.00023013,7]
[379621928,1755347462016,-480.0,0.00023013,3]
[379621929,1755347462026,-614.25036365,0.00023013,3]
[379621930,1755347462036,-480.0,0.00023013,3]
[379621931,1755347462045,-480.0,0.00023013,3]
[379621932,1755347462054,-480.0,0.00023013,3]
[379621933,1755347462063,-480.0,0.00023013,3]
[379621934,1755347462072,-480.0,0.00023013,3]
[379621935,1755347462081,-200.0,0.00023013,3]
[379621936,1755347462091,-151.0,0.00023013,7]
[379621937,1755347462100,-480.0,0.00023013,3]
[379621938,1755347462110,-151.0,0.00023013,7]
[379621939,1755347462119,-151.0,0.00023013,7]
[379621940,1755347462129,-151.0,0.00023013,7]
[379621941,1755347462138,-261.680465,0.00023013,7]
[379621942,1755347462148,-261.680465,0.00023013,7]
[379621943,1755347462157,-480.0,0.00023013,3]
[379621944,1755347462168,-275.41251381,0.00023013,3]
[379621945,1755347462182,-480.0,0.00023013,3]
[379621946,1755347462191,-480.0,0.00023013,3]
[379621947,1755347462201,-2517.39,0.00023013,3]
[379621948,1755347462211,-480.0,0.00023013,3]
[379621949,1755347462222,-480.0,0.00023013,3]
[379621950,1755347462235,-506.75151956,0.00023013,3]
[379621951,1755347462245,-488.96,0.00023013,3]
[379621952,1755347462255,-480.0,0.00023013,3]
[379621953,1755347462267,-157.747276,0.00023013,7]
[379621954,1755347462277,-480.0,0.00023013,3]
[379621955,1755347462287,-480.0,0.00023013,3]
[379621956,1755347462296,-480.0,0.00023013,3]
[379621957,1755347462305,-480.0,0.00023013,3]
[379621958,1755347462315,-480.0,0.00023013,3]
[379621959,1755347462324,-480.0,0.00023013,3]
[379621960,1755347462333,-977.855157,0.00023013,7]
[379621961,1755347462343,-480.0,0.00023013,3]
[379621962,1755347462353,-977.855157,0.00023013,7]
[379621963,1755347462363,-480.0,0.00023013,3]
[379621964,1755347462372,-436.003215,0.00023013,7]
[379621965,1755347462382,-436.003215,0.00023013,7]
[379621966,1755347462392,-480.0,0.00023013,3]
[379621967,1755347462401,-480.0,0.00023013,3]
[379621968,1755347462411,-480.0,0.00023013,3]
[379621969,1755347462425,-480.0,0.00023013,3]
[379621970,1755347462434,-171.076436,0.00023013,7]
[379621971,1755347462444,-480.0,0.00023013,3]
[379621972,1755347462453,-480.0,0.00023013,3]
[379621973,1755347462464,-480.0,0.00023013,3]
[379621974,1755347462475,-480.0,0.00023013,3]
[379621975,1755347462484,-171.076436,0.00023013,7]
[379621976,1755347462494,-480.0,0.00023013,3]
[379621977,1755347462503,-791.44,0.00023013,3]
[379621978,1755347462513,-480.0,0.00023013,3]
[379621979,1755347462522,-480.0,0.00023013,3]
[379621980,1755347462532,-480.0,0.00023013,3]
[379621981,1755347462541,-480.0,0.00023013,3]
[379621982,1755347462550,-480.0,0.00023013,3]
[379621983,1755347462559,-480.0,0.00023013,3]
[379621984,1755347462569,-534.87,0.00023013,3]
[379621985,1755347462578,-1689.3,0.00023013,3]
[379621986,1755347462587,-813.53,0.00023013,3]
[379621987,1755347462597,-480.0,0.00023013,3]
[379621988,1755347462606,-480.0,0.00023013,3]
[379621989,1755347462615,-956.52,0.00023013,3]
[379621990,1755347462625,-480.0,0.00023013,3]
[379621991,1755347462635,-480.0,0.00023013,3]
[379621992,1755347462644,-480.0,0.00023013,3]
[379621993,1755347462653,-902.926463,0.00023013,7]
[379621994,1755347462663,-503.39551773,0.00023013,3]
[379621995,1755347462675,-494.66,0.00023013,3]
[379621996,1755347462685,-902.926463,0.00023013,7]
[379621997,1755347462695,-299.97,0.00023013,3]
[379621998,1755347462705,-480.0,0.00023013,3]
[379621999,1755347462714,-151.0,0.00023013,7]
[379622000,1755347462724,-227.92892697,0.00023013,3]
[379622001,1755347462733,-400.0,0.00023013,3]
[379622002,1755347462743,-748.94,0.00023013,3]
[379622003,1755347462752,-480.0,0.00023013,3]
[379622004,1755347462762,-480.0,0.00023013,3]
[379622005,1755347462772,-547.74529936,0.00023013,3]
[379622006,1755347462781,-480.0,0.00023013,3]
[379622007,1755347462791,-151.0,0.00023013,7]
[379622008,1755347462801,-434.95595229,0.00023013,3]
[379622009,1755347462811,-480.0,0.00023013,3]
[379622010,1755347462820,-480.0,0.00023013,3]
[379622011,1755347462830,-604.24,0.00023013,3]
[379622012,1755347462840,-480.0,0.00023013,3]
[379622013,1755347462851,-499.39910151,0.00023013,3]
[379622014,1755347462862,-480.0,0.00023013,3]
[379622015,1755347463084,-520.24495967,0.00023013,3]
[379622016,1755347463095,-480.0,0.00023013,3]
[379622017,1755347463106,-480.0,0.00023013,3]
[379622018,1755347463115,-480.0,0.00023013,3]
[379622019,1755347463126,-480.0,0.00023013,3]
[379622020,1755347463135,-480.0,0.00023013,3]
[379622021,1755347463145,-400.0,0.00023013,3]
[379622022,1755347463156,-151.0,0.00023013,7]
[379622023,1755347463165,-480.0,0.00023013,3]
[379622024,1755347463177,-480.0,0.00023013,3]
[379622025,1755347463187,-480.0,0.00023013,3]
[379622026,1755347463197,-480.0,0.00023013,3]
[379622027,1755347463207,-1130.500046,0.00023013,7]
[379622028,1755347463217,-480.0,0.00023013,3]
[379622029,1755347463227,-7168.88,0.00023013,3]
[379622030,1755347463237,-1317.3,0.00023013,3]
[379622031,1755347463246,-1130.500046,0.00023013,7]
[379622032,1755347463256,-480.0,0.00023013,3]
[379622033,1755347463266,-480.0,0.00023013,3]
[379622034,1755347463276,-151.0,0.00023013,7]
[379622035,1755347463286,-721.201975,0.00023013,7]
[379622036,1755347463296,-480.0,0.00023013,3]
[379622037,1755347463306,-721.201975,0.00023013,7]
[379622038,1755347463316,-750.95,0.00023013,3]
[379622039,1755347463325,-480.0,0.00023013,3]
[379622040,1755347463336,-480.0,0.00023013,3]